Cogmind - Beta 13 @@@ ROGUE MODE // 2024.07.05 @ 07:06:01 Player: N00Bk1llr Result: Destroyed by AD-0RF with AD-0RF's Magmablaster Performance ------------- Evolutions (1) 500 Regions Visited (6) 1200 Robots Destroyed (68) 340 Value Destroyed (1417) 1417 Prototype IDs (5) 100 Alien Tech Used (0) 0 Bonus (8) 8 TOTAL SCORE: 3565 Bonus ------- High Alert Combat Kills 8 Cogmind --------- Core Integrity 0/400 Matter 262/300 Energy 259/265 System Corruption 2% Temperature Cool (42) Movement Walking (190) Ox1 Location -8/Mines Parts ------- > --- POWER (1) -------- Improved Ion Engine > --- PROPULSION (2) --- Advanced Myomer Leg Advanced Myomer Leg > --- UTILITY (3) ------ Huge Storage Unit Seismic Detector Hardened Light Armor Plating > --- WEAPON (3) ------- Rocket Launcher Katana > --- INVENTORY (25) --- Light Treads Compact Wheel Improved Heat Sink Improved Heat Sink Experimental Heat Sink Cooling System Cooling System High-capacity Battery (250) High-capacity Matter Pod (94) High-capacity Matter Pod (0) Beamcaster Improved Light Cannon Improved Light Cannon Peak State ------------ > --- POWER ------------ Improved Ion Engine > --- PROPULSION ------- Advanced Myomer Leg Advanced Myomer Leg > --- UTILITY ---------- Huge Storage Unit Seismic Detector Hardened Light Armor Plating > --- WEAPON ----------- Rocket Launcher Katana > --- INVENTORY -------- Light Treads Compact Wheel Improved Heat Sink Improved Heat Sink Experimental Heat Sink Cooling System Cooling System High-capacity Battery High-capacity Matter Pod High-capacity Matter Pod Beamcaster Improved Light Cannon Improved Light Cannon [Rating: 30] Favorites ----------- Power Improved Ion Engine Engine Improved Ion Engine Propulsion Light Treads Treads Light Treads Leg Aluminum Leg Utility Medium Armor Plating Device Structural Scanner Storage Huge Storage Unit Processor Improved Targeting Computer Protection Medium Armor Plating Weapon Improved Light Cannon Energy Gun Small Laser Energy Cannon Advanced Beam Cannon Ballistic Gun Autogun Ballistic Cannon Improved Light Cannon Launcher Rocket Launcher Impact Weapon Maul Slashing Weapon Katana Build | -11 -10 -10 -9 -9 -9 -8 ------- Run | Yrd Mat Min Mat Min Exi Min Slots Evolved 2 | . . . 2 . . . Power . | . . . . . . . Propulsion . | . . . . . . . Utility 1 | . . . 1 . . . Weapon 1 | . . . 1 . . . Parts Attached 80 | 2 11 1 34 9 23 . Power 3 | . . 1 1 . 1 . Engine 3 | . . 1 1 . 1 . Core . | . . . . . . . Reactor . | . . . . . . . Propulsion 15 | 2 1 . 5 1 6 . Treads 13 | 2 1 . 5 1 4 . Leg 2 | . . . . . 2 . Wheel . | . . . . . . . Hover . | . . . . . . . Flight . | . . . . . . . Utility 35 | . 7 . 16 5 7 . Device 21 | . 5 . 12 2 2 . Storage 3 | . 2 . 1 . . . Processor 1 | . . . . . 1 . Hackware . | . . . . . . . Protection 10 | . . . 3 3 4 . Artifact . | . . . . . . . Weapon 27 | . 3 . 12 3 9 . Energy Gun 2 | . 1 . 1 . . . Energy Cannon 3 | . 1 . 2 . . . Ballistic Gun 9 | . . . 4 . 5 . Ballistic Cannon 5 | . 1 . 2 2 . . Launcher 3 | . . . . 1 2 . Special Weapon . | . . . . . . . Impact Weapon 2 | . . . 2 . . . Slashing Weapon 3 | . . . 1 . 2 . Piercing Weapon . | . . . . . . . Special Melee Weapon . | . . . . . . . Unidentified Prototypes 2 | . 1 . . . 1 . Parts Lost 21 | . . 1 4 3 13 . Power 3 | . . 1 1 . 1 . Propulsion 5 | . . . . 1 4 . Utility 6 | . . . 1 1 4 . Weapon 7 | . . . 2 1 4 . Highest Loss Streak 8 | . . 1 2 1 8 . To Critical Strikes 6 | . . . . . 6 . Average Slot Usage (%) 98 | . 98 100 99 99 93 88 Engine 11 | . 14 14 11 11 11 11 Treads 23 | . 27 28 22 22 20 . Device 7 | . 13 14 12 . . 11 Storage 11 | . 14 14 11 11 11 11 Protection 12 | . . . 9 21 18 11 Energy Gun 2 | . 2 . 7 . . . Energy Cannon 5 | . 6 14 10 . . . Ballistic Gun 6 | . 6 . 8 . 21 . Ballistic Cannon 14 | . 11 14 5 32 2 . Naked Turns . | . . . . . . . Heaviest Build 113 | 12 33 33 107 113 113 99 Greatest Support 60 | 40 40 40 40 40 60 60 Greatest Overweight (x) 2 | . . . 2 2 2 1 Average Overweight (x) 1 | . . . 1 2 1 1 Largest Inventory Capacity 25 | 8 15 15 25 25 25 25 Average Capacity 21 | 8 13 15 23 25 25 25 Most Carried 25 | 8 15 15 25 25 25 13 Average Carried 18 | 5 12 14 18 23 19 13 Final Capacity 25 | 8 15 15 25 25 25 25 Final Carried 25 | 5 15 14 25 24 13 13 Class Distribution -------------------- 37% | Tank 28% | Scavenger-Tank 26% | Mutant 4% | Skirmisher 3% | Scavenger-Mutant Dominant Class ---------------- Mutant | -10/Materials Mutant | -10/Mines Scavenger-Tank | -9/Materials Tank | -9/Mines Tank | -9/Exiles Scavenger-Mutant | -8/Mines Resources | -11 -10 -10 -9 -9 -9 -8 ----------- Run | Yrd Mat Min Mat Min Exi Min Matter Collected 2931 | 253 496 127 738 670 647 . Remotely . | . . . . . . . Salvage Created 2316 | 157 491 90 1370 105 103 . Parts 142 | 11 36 8 81 3 3 . Haulers Intercepted 4 | . 2 . 2 . . . Recyclers Shooed 5 | . 1 1 3 . . . Parts Field Recycled . | . . . . . . . Retrieved Matter . | . . . . . . . Parts Self-Destructed . | . . . . . . . Prevented . | . . . . . . . Kills | -11 -10 -10 -9 -9 -9 -8 ------- Run | Yrd Mat Min Mat Min Exi Min Combat Hostiles Destroyed 59 | . 9 5 24 16 5 . Melee 1 | . . . . . 1 . Guns 11 | . 2 . 9 . . . Cannons 39 | . 7 5 15 12 . . AOE 8 | . . . . 4 4 . Classes Destroyed 12 | 2 6 . 2 2 . . Worker 4 | . 1 . 1 2 . . Builder 4 | . 1 . 2 1 . . Tunneler 5 | 4 . . . 1 . . Hauler 4 | . 2 . 2 . . . Recycler 6 | 1 1 1 3 . . . Watcher 5 | . 3 . 2 . . . Swarmer 11 | . 3 5 3 . . . Grunt 18 | . 6 . 12 . . . Duelist 2 | . . . 2 . . . Sentry 7 | . . . 7 . . . Demolisher 1 | . . . . 1 . . Assembled 19 | . . . . 15 4 . Best Kill Streak 11 | 3 6 4 11 8 4 . Combat Bots Only 7 | . 3 3 7 6 4 . Max Kills in Single Turn 4 | 1 1 1 1 4 2 . Gunslinging . | . . . . . . . Exploded 3 | . . . . 3 2 . Melee 1 | . . . . . 1 . Uniques/NPCs Destroyed 1 | . . . . . 1 . 8R-AWN (-9/Exiles) Combat | -11 -10 -10 -9 -9 -9 -8 -------- Run | Yrd Mat Min Mat Min Exi Min Hostile Shots Fired 338 | . 48 22 120 33 103 12 Missed 83 | . 13 6 36 11 16 1 Damage Taken 3666 | . 425 134 1032 423 1536 116 Core 543 | . 105 32 152 33 209 12 Absorbed by Shields . | . . . . . . . Regen/Repaired (Parts) 124 | . 124 . . . . . Core Remaining (%) 72 | 100 . 45 . . . . Volleys Fired 218 | 18 54 11 78 29 28 . Largest 3 | 2 2 2 3 3 3 . Hottest 146 | 40 103 103 146 146 69 . Shots Fired 548 | 36 108 22 222 85 75 . Gun 254 | 36 44 . 104 . 70 . Cannon 287 | . 64 22 118 83 . . Launcher 7 | . . . . 2 5 . Special . | . . . . . . . Kinetic 372 | 36 67 11 108 80 70 . Thermal 169 | . 41 11 114 3 . . Explosive 7 | . . . . 2 5 . Electromagnetic . | . . . . . . . Robot Hit Streak 19 | 4 5 2 19 8 15 . Robot Miss Streak 6 | 3 4 4 4 3 6 . Penetration Max . | . . . . . . . Secondary Targets . | . . . . . . . Shots Hit Robots 319 | 23 56 8 131 38 63 . Core Hits 133 | 9 22 6 51 28 17 . Critical Kills 1 | . . . 1 . . . Critical Parts Destroyed . | . . . . . . . Critical Strikes 3 | . 2 . 1 . . . Burn 1 | . 1 . . . . . Meltdown 1 | . . . 1 . . . Blast 1 | . 1 . . . . . Melee Attacks 28 | . . . 3 . 25 . Impact 2 | . . . 2 . . . Slashing 26 | . . . 1 . 25 . Piercing . | . . . . . . . Sneak Attacks . | . . . . . . . Combat Hostiles . | . . . . . . . Follow-up Attacks . | . . . . . . . Damage Inflicted 6178 | 173 885 184 2300 1067 1569 . Guns 1933 | 170 250 . 858 . 655 . Cannons 2981 | . 624 144 1404 809 . . Explosions 570 | . . . . 253 317 . Melee 597 | . . . . . 597 . Ramming 97 | 3 11 40 38 5 . . Kinetic 3180 | 170 606 103 899 747 655 . Thermal 1734 | . 268 41 1363 62 . . Explosive 570 | . . . . 253 317 . Electromagnetic . | . . . . . . . Impact . | . . . . . . . Slashing 597 | . . . . . 597 . Piercing . | . . . . . . . Highest Corruption 2 | . 2 2 1 2 2 2 Average Corruption 1 | . 2 2 1 1 2 2 Corruption Purged . | . . . . . . . Corruption Blocked . | . . . . . . . Effects 54 | . 2 5 6 24 16 1 Message Errors 7 | . 1 . 1 4 1 . Matter Fused 21 | . . 1 2 7 10 1 Heat Flow Errors 7 | . 1 . . 5 1 . Energy Discharges 3 | . . 1 . 2 . . Parts Rejected 1 | . . . . . 1 . Parts Fused 3 | . . 1 1 . 1 . Data Loss (minor) 4 | . . 2 1 . 1 . Data Loss (major) 2 | . . . . 2 . . Misfires 5 | . . . 1 3 1 . Weapon Failures 1 | . . . . 1 . . Overload Shots . | . . . . . . . Overflow Damage 55 | . . . 1 31 23 . Projectiles 26 | . . . 1 25 . . Explosions 6 | . . . . 6 . . Melee 23 | . . . . . 23 . Knockbacks 18 | . 5 . 3 10 . . Impact . | . . . . . . . Kinetic 18 | . 5 . 3 10 . . Secondary . | . . . . . . . Self-Inflicted Damage 65 | . . . . . 65 . Shots 2 | . . . . . 2 . Rammed 18 | 2 1 7 7 1 . . Targets Rammed 20 | 2 2 8 7 1 . . Kicked . | . . . . . . . Crushed 2 | . 1 1 . . . . Highest Temperature 386 | . 258 232 244 278 386 93 Average Temperature 99 | . 97 110 85 93 168 49 Received Heat Transfer 975 | . 237 . 438 120 . 180 Effects 7 | . 2 3 1 . 1 . Shutdowns 1 | . . . . . 1 . Energy Bleed 3 | . 2 . 1 . . . Interference 3 | . . 3 . . . . Siege Activations . | . . . . . . . Robots Corrupted . | . . . . . . . Combat Hostiles . | . . . . . . . Parts Fried . | . . . . . . . Impact Corruptions . | . . . . . . . Robots Melted 1 | . . . 1 . . . Combat Hostiles . | . . . . . . . Parts Melted 7 | . . . 7 . . . Heat Transferred 3487 | . 777 74 2525 111 . . Parts Sabotaged . | . . . . . . . Parts Stolen . | . . . . . . . Parts Stripped . | . . . . . . . Power Chain Reactions . | . . . . . . . Alert | -11 -10 -10 -9 -9 -9 -8 ------- Run | Yrd Mat Min Mat Min Exi Min Peak Influence 418 | 25 324 115 418 124 . . Initial 73 | . 16 . . 73 . . Average 109 | 14 138 40 190 20 . . Maximum Alert Level 2 | . 1 . 2 . . . Low Security (%) 72 | 100 56 100 49 100 . 100 Level 1 27 | . 43 . 49 . . . Level 2 . | . . . 1 . . . Level 3 . | . . . . . . . Level 4 . | . . . . . . . Level 5 . | . . . . . . . High Security . | . . . . . . . Max Security . | . . . . . . . Squads Dispatched 8 | . 2 . 5 1 . . Investigation 3 | . 1 . 2 . . . Extermination . | . . . . . . . Reinforcement 5 | . 1 . 3 1 . . Assault . | . . . . . . . Garrison . | . . . . . . . Intercept . | . . . . . . . Searches Triggered . | . . . . . . . Construction Impeded 2 | . . . 1 1 . . Haulers Reinforced . | . . . . . . . Active Scanning Responses . | . . . . . . . Cargo Convoy Interrupts . | . . . . . . . Stealth | -11 -10 -10 -9 -9 -9 -8 --------- Run | Yrd Mat Min Mat Min Exi Min Distress Signals 5 | . 1 . 3 1 . . Communications Jammed . | . . . . . . . Distress Signals . | . . . . . . . Times Spotted 89 | . 22 6 33 19 8 1 Peak Tracking Total 9 | . 6 3 5 5 9 1 Tactical Retreats 8 | . 2 . 1 5 . . Traps | -11 -10 -10 -9 -9 -9 -8 ------- Run | Yrd Mat Min Mat Min Exi Min Traps Triggered 3 | . 2 . 1 . . . Indirectly . | . . . . . . . Trap Hack Attempts . | . . . . . . . Triggered . | . . . . . . . Disarmed . | . . . . . . . Reprogrammed . | . . . . . . . Reused . | . . . . . . . Traps Extracted . | . . . . . . . Installed . | . . . . . . . Triggered . | . . . . . . . Machines | -11 -10 -10 -9 -9 -9 -8 ---------- Run | Yrd Mat Min Mat Min Exi Min Machines Disabled 7 | . . . 1 . 6 . Max in Single Turn 1 | . . . 1 . 1 . Machines Repaired . | . . . . . . . Machines Dismantled . | . . . . . . . Machines Sabotaged . | . . . . . . . Overloaded Fab Kills . | . . . . . . . Hacking | -11 -10 -10 -9 -9 -9 -8 --------- Run | Yrd Mat Min Mat Min Exi Min Machines Accessed 16 | . 8 . 6 1 1 . Terminals 13 | . 7 . 5 1 . . Fabricators . | . . . . . . . Repair Stations 1 | . 1 . . . . . Recycling Units . | . . . . . . . Scanalyzers 1 | . . . 1 . . . Garrison Access . | . . . . . . . Total Hacks 53 | . 20 . 27 5 1 . Successful 23 | . 11 . 11 . 1 . Failed 30 | . 9 . 16 5 . . Catastrophic 6 | . 2 . 4 . . . Database Lockouts . | . . . . . . . Manual 30 | . 8 . 22 . . . Terminals 47 | . 17 . 25 5 . . Fabricators . | . . . . . . . Repair Stations 3 | . 3 . . . . . Recycling Units . | . . . . . . . Scanalyzers 2 | . . . 2 . . . Garrison Access . | . . . . . . . Terminal Hacks 16 | . 8 . 7 . 1 . Record 1 | . . . . . 1 . Robot Analysis 1 | . 1 . . . . . Prototype ID Bank 2 | . . . 2 . . . Emergency Access Points 1 | . 1 . . . . . Terminal Index 1 | . . . 1 . . . Unreport Threat 1 | . 1 . . . . . Locate Traps 3 | . 2 . 1 . . . Hauler Manifests 2 | . 1 . 1 . . . Registered Components 2 | . 1 . 1 . . . Zone Layout 2 | . 1 . 1 . . . Fabricator Hacks . | . . . . . . . Repair Station Hacks 2 | . 2 . . . . . Scan Component 1 | . 1 . . . . . Repair 1 | . 1 . . . . . Recycling Unit Hacks . | . . . . . . . Scanalyzer 2 | . . . 2 . . . Insert Component 1 | . . . 1 . . . Analyze 1 | . . . 1 . . . Garrison Access Hacks . | . . . . . . . Unauthorized Hacks 3 | . 1 . 2 . . . Terminals 3 | . 1 . 2 . . . Botnet 3 | . 1 . 2 . . . Fabricators . | . . . . . . . Repair Stations . | . . . . . . . Recycling Units . | . . . . . . . Scanalyzers . | . . . . . . . Garrison Access . | . . . . . . . Data Cores Recovered . | . . . . . . . Used . | . . . . . . . Hacking Detections 14 | . 7 . 6 1 . . Full Trace Events 2 | . . . 1 1 . . Feedback Events 2 | . . . 1 1 . . Corruption 2 | . . . 1 1 . . Feedback Blocked . | . . . . . . . Robot Schematics Acquired . | . . . . . . . Robots Built . | . . . . . . . Authchips . | . . . . . . . Time . | . . . . . . . Total Robot Build Rating . | . . . . . . . Part Schematics Acquired 1 | . . . 1 . . . Parts Built . | . . . . . . . Authchips . | . . . . . . . Time . | . . . . . . . Total Part Build Rating . | . . . . . . . Parts Repaired 1 | . 1 . . . . . Time 26 | . 26 . . . . . Parts Recycled . | . . . . . . . Recycled Matter . | . . . . . . . Retrieved Matter . | . . . . . . . Retrieved Components . | . . . . . . . Parts Scanalyzed 1 | . . . 1 . . . Part Schematics Acquired 1 | . . . 1 . . . Parts Damaged . | . . . . . . . Bothacking | -11 -10 -10 -9 -9 -9 -8 ------------ Run | Yrd Mat Min Mat Min Exi Min Used RIF Installer . | . . . . . . . Robots Hacked . | . . . . . . . Non-combat . | . . . . . . . Combat . | . . . . . . . Robot Hacks Applied . | . . . . . . . Relay Couplers Released . | . . . . . . . Fabnet Peak Effective % . | . . . . . . . Robots Rewired . | . . . . . . . Allies Hacked . | . . . . . . . Hacks Repelled . | . . . . . . . Allies | -11 -10 -10 -9 -9 -9 -8 -------- Run | Yrd Mat Min Mat Min Exi Min Total Allies 5 | . . . . 5 . . Largest Group 5 | . . . . 5 5 . Highest-Rated Group 81 | . . . . 81 81 . Highest-Rated Ally 31 | . . . . 31 31 . Total Orders . | . . . . . . . Ally Attacks 17 | . . . . 13 4 . Total Damage 125 | . . . . 98 27 . Kills 3 | . . . . 2 1 . Allies Corrupted . | . . . . . . . Allies Melted . | . . . . . . . Intel | -11 -10 -10 -9 -9 -9 -8 ------- Run | Yrd Mat Min Mat Min Exi Min Robot Analysis Total 1 | . 1 . . . . . Derelict Logs Recovered 2 | . . . . 2 . . Drone Launches . | . . . . . . . Drone Recoveries . | . . . . . . . Exploration | -11 -10 -10 -9 -9 -9 -8 ------------- Run | Yrd Mat Min Mat Min Exi Min Turns Passed 7456 | 108 1262 437 2510 2171 937 31 Spaces Moved 2542 | 38 632 243 740 635 237 17 Core . | . . . . . . . Treads 2459 | 1 632 243 740 635 208 . Legs 83 | 37 . . . . 29 17 Wheels . | . . . . . . . Hover . | . . . . . . . Flight . | . . . . . . . Fastest Speed 120 | 120 160 160 160 320 190 190 Average Speed 248 | 121 160 160 283 320 304 190 Slowest Speed 320 | 160 160 160 320 320 320 190 Overloaded Moves . | . . . . . . . Propulsion Burnouts . | . . . . . . . Robots Hopped . | . . . . . . . Cave-ins Triggered . | . . . . . . . Exploration Rate (%) 54 | 3 95 56 71 98 49 11 Regions Visited 6 Branch Regions 4 Pre-discovered Areas 2 | . . 1 . . 1 . Known Exits Taken . | . . . . . . . Unknown Exits Taken 6 | 1 1 1 1 1 1 . Scrap Searched 3 | . . 1 . 2 . . Spaces Dug 3 | . . . 3 . . . Terrain Destroyed 60 | . . . 3 32 25 . Melee 3 | . . . 3 . . . Projectile 9 | . . . . 9 . . AOE 48 | . . . . 23 25 . Terrain Rammed . | . . . . . . . Walls Destroyed . | . . . . . . . Machines Disabled . | . . . . . . . Actions | -11 -10 -10 -9 -9 -9 -8 --------- Run | Yrd Mat Min Mat Min Exi Min Total 3186 | 73 780 265 966 708 377 17 Wait 199 | 4 51 3 66 33 42 . Move 2537 | 38 631 242 739 634 236 17 Hop . | . . . . . . . Pick Up 60 | 4 18 . 25 2 11 . Fast Attach 5 | . 3 . 1 . 1 . Attach 30 | 2 2 1 5 3 17 . Detach 5 | 1 2 . . . 2 . Swap 45 | . 6 . 28 6 5 . Drop 40 | 5 11 . 14 . 10 . Fire 218 | 18 54 11 78 29 28 . Melee 28 | . . . 3 . 25 . Ram . | . . . . . . . Kick . | . . . . . . . Crush 19 | 1 2 8 7 1 . . Escape Stasis . | . . . . . . . Rewire . | . . . . . . . Trap . | . . . . . . . Miscellaneous . | . . . . . . . Route ------- -11/Scrapyard -10/Materials (discovered 4 exits: *Mat x3 / [*Min]) -10/Mines -9/Materials (discovered 3 exits: [*Mat x2] / *Min) -9/Mines (discovered 3 exits: [*Mat x2] / *Exi) -9/Exiles -8/Mines History --------- Turn | Location | Event 18 | -11/Scrapyard | Discovered new exit (range 3) 109 | -11/Scrapyard | Entered Materials 327 | -10/Materials | Build established: Mutant 465 | -10/Materials | Discovered new exit (range 4) 621 | -10/Materials | Discovered new exit (range 6) 800 | -10/Materials | Discovered new exit (range 10) 1079 | -10/Materials | Repaired Lgt. Treads 1085 | -10/Materials | Discovered new exit (range 16) 1371 | -10/Materials | Entered Mines 1424 | -10/Mines | Met a Derelict bent on vengeance 1429 | -10/Mines | Learned location of Storage (-8) 1694 | -10/Mines | Core integrity fell below 50% 1720 | -10/Mines | Found a damaged Exp. Sensor Array with a note attached 1796 | -10/Mines | Discovered new exit (range 7) 1808 | -10/Mines | Entered Materials 1808 | -9/Materials | Evolved 2 slots: Utility x1, Weapon x1 2092 | -9/Materials | Discovered new exit (range 4) 2093 | -9/Materials | Build established: Skirmisher 2201 | -9/Materials | Destroyed 7 combat bots 2533 | -9/Materials | Build established: Scavenger-Tank 2842 | -9/Materials | Discovered new exit (range 8) 3713 | -9/Materials | Discovered new exit (range 5) 4318 | -9/Materials | Entered Mines 4319 | -9/Mines | Assembled infested the area 4324 | -9/Mines | Assisted by a Guerilla fighting off Assembled 4511 | -9/Mines | Discovered new exit (range 13) 4841 | -9/Mines | Build established: Tank 5388 | -9/Mines | Learned Materials security intel 5455 | -9/Mines | Assisted by bots powering up and referring to "LRC-V3" 5519 | -9/Mines | Learned 8 Materials zone layouts 5835 | -9/Mines | Discovered new exit (range 11) 6470 | -9/Mines | Deemed a non-threat by the Exiles lab entrance 6470 | -9/Mines | Discovered new exit (range 5) 6489 | -9/Mines | Entered Exiles 6489 | -9/Exiles | Accompanied by 5 allies 6519 | -9/Exiles | Led the pair of lost Derelicts to a safe place 6576 | -9/Exiles | Met 8R-AWN 6628 | -9/Exiles | Met EX-HEX 6752 | -9/Exiles | Met EX-DEC 6768 | -9/Exiles | Learned location of Zion (-6) 6924 | -9/Exiles | Discovered new exit (range 14) 6975 | -9/Exiles | Attacked by the Exiles 7030 | -9/Exiles | Lost 3 allies 7073 | -9/Exiles | Core integrity fell below 50% 7148 | -9/Exiles | Lost 5 parts (2n2u1w) 7201 | -9/Exiles | Core integrity fell below 20% 7227 | -9/Exiles | Destroyed 8R-AWN 7245 | -9/Exiles | Lost 8 parts (1p2n2u3w) 7426 | -9/Exiles | Entered Mines 7443 | -8/Mines | AD-0RF came to Exiles' defense 7457 | -8/Mines | Destroyed by AD-0RF with AD-0RF's Magmablaster Last Messages --------------- 07218_ Penetrated by HV Slug. 07227_ 8R-AWN destroyed. 07229_ Acquired 101 matter. 07236_ Acquired Prototype Device. 07240_ Acquired Prototype Leg. 07257_ System corrupted: Matter fused (-6). 07264_ Acquired Hcp. Matter Pod. 07280_ System corrupted: Matter fused (-8). 07295_ Extracted 100 matter. 07354_ Acquired Beamcaster. 07355_ Acquired 38 matter. 07361_ Acquired Imp. Heat Sink. 07365_ Acquired 8 matter. 07369_ Discarded Lgt. Treads. 07370_ Identified Adv. Myomer Leg. A strange signal echoes through the mines. LOCATION=UNKNOWN GOAL=ESCAPE 07433_ System corrupted: Matter fused (-8). 07443_ AD-0RF: "I came as fast as I could... Wait, it was you!" Map ----- +----------------------------------------------------+ | ?????????????????????????????????????????????????? | | ?????????????????????????????????????????????????? | | ?????????????????????????????????????????????????? | | ?????????????????????????????????????????????????? | | ?????????????????????????????????????????????????? | | ?????????????????????????????????????????????????? | | ?????????????????????????????????????????????????? | | ?????????????????????????????????????????????????? | | ?????????????????????????????????????????????????? | | ?????????????????????????????????????????????????? | | ?????????????????????????????????????????????????? | | ?????????????????????????????????????????????????? | | ?????????????????????????????????????????????????? | | ?????????????????????????????????????????????????? | | ?????????????????????????????????????????????????? | | ???????????????????????###???????????????????????? | | ??????????????????????## ##?????????????????????? | | ??????????????????????# #?????????????????????? | | ??????????????????????# #?????????????????????? | | ??????????????????????# ##????????????????????? | | ??????????????????????# ##???????????????????? | | ?????????????### ???### ##??????????????????? | | ????????????## ## #??????????????????? | | ????????????# ##?????????????????? | | ????????????? #####?????????????? | | ????????????????????# @ i ##????????????? | | ????????????????????## ### #????????????? | | ?????????????????????####??## """ #????????????? | | ???????????????????????????## """ #????????????? | | ??????????????????????????## """ ##???????????? | | ?????????????????????????## ##??????????? | | ?????????????????????????# #??????????? | | ?????????????????????##### ## #??????????? | | ?????????????????????# ##?# #??????????? | | ?????????????????????# ### #???######??????????? | | ?????????????????????# #?# #???????????????????? | | ?????????????????????# #? #??????????????????? | | ????????????????????? ?????????????????? | | ????????????????????? ????????????????? | | ?????????????????????# ## #???????????????? | | ?????????????????????# ### ## ##???????????????? | | ????????????????????? #?# #?####????????????????? | | ?????????????????????##??# ??????????????????????? | | ?????????????????????????# ??????????????????????? | | ?????????????????????????# ??????????????????????? | | ?????????????????????????? ??????????????????????? | | ?????????????????????????? ??????????????????????? | | ??????????????????????????#??????????????????????? | | ?????????????????????????????????????????????????? | | ?????????????????????????????????????????????????? | +----------------------------------------------------+ Best States ------------- Heat Dissipation 42 Energy Generation 12 Energy Capacity 265 Matter Stores 300 Matter Capacity 300 Sight Range 16 Terrain Scan Density 10 Armor Coverage 450 Evasion (%) 55 Targeting Accuracy 6 Recoil Reduction 2 Item Schematics ----------------- Med. Armor Plating | -9/Materials | Scanalyzed Robot Schematics ------------------ None Fabricated ------------ Nothing Alien Tech Used ----------------- None Achievements -------------- Exterminator Challenges ------------ None Game ------ Seed GyrokineticBurstRedirector Manual? 0 Play Time 00:36:29 Cumulative 71.6 hours Start 2024.07.04 @ 14:42:17 End 2024.07.05 @ 07:06:01 Sessions 2 Manual Loads 0 Difficulty Rogue Special Mode None Game No. 128 Rogue 106 Adventurer 22 Explorer 0 Win Type - Total 1 Types 1/0/0/0/0/0/0/0/0 Lore% 44 Gallery% 58 Achievement% 49 Wizard Run 0 Options --------- Layout 0 ASCII 0 Keyboard 1 Movement Numpad Keybinds 0 Fullscreen 2 Font 18/SmallcapsGlow Map View 76x50 Zoom Use 0% Tactical HUD 1 Map Filters NONE Filters NONE Steam 1 RUN: 33ebf7a3-25c2-481e-bb87-7909eecd1c59